fUST/lending_fUST_20250128
["ID","MTS","AMOUNT","RATE_DAILY","PERIOD"]
[350641247,1738014563747,-501.72385506,0.00016575,2]
[350641248,1738014563769,-500.0,0.00016575,2]
[350641249,1738014563789,-500.0,0.00016575,2]
[350641250,1738014563810,-500.0,0.00016575,2]
[350641251,1738014563832,-500.0,0.00016575,2]
[350641252,1738014563853,-500.0,0.00016575,2]
[350641253,1738014563874,-500.0,0.00016575,2]
[350641254,1738014563899,-500.0,0.00016575,2]
[350641255,1738014563920,-500.0,0.00016575,2]
[350641256,1738014563942,-500.0,0.00016575,2]
[350641257,1738014563964,-500.0,0.00016575,2]
[350641258,1738014563988,-500.0,0.00016575,2]
[350641259,1738014564010,-500.0,0.00016575,2]
[350641260,1738014564037,-500.0,0.00016575,2]
[350641261,1738014564062,-500.0,0.00016575,2]
[350641262,1738014564084,-500.0,0.00016575,2]
[350641263,1738014564106,-587.44730377,0.00016575,2]
[350641264,1738014564128,-500.0,0.00016575,2]
[350641265,1738014564154,-500.0,0.00016575,2]
[350641266,1738014564182,-500.0,0.00016575,2]
[350641267,1738014564204,-500.0,0.00016575,2]
[350641268,1738014564225,-500.0,0.00016575,2]
[350641269,1738014564248,-500.0,0.00016575,2]
[350641270,1738014564271,-500.0,0.00016575,2]
[350641271,1738014564293,-500.0,0.00016575,2]
[350641272,1738014564315,-500.0,0.00016575,2]
[350641273,1738014564338,-475.38842875,0.00016575,2]
[350641274,1738014564360,-495.36007903,0.00016575,2]
[350641275,1738014564384,-448.7156637,0.00016575,2]
[350641276,1738014564412,-500.0,0.00016575,2]
[350641277,1738014564435,-500.0,0.00016575,2]
[350641278,1738014564456,-500.0,0.00016575,2]
[350641279,1738014564480,-500.0,0.00016575,2]
[350641280,1738014564506,-687.97,0.00016575,2]
[350641281,1738014564528,-500.0,0.00016575,2]
[350641282,1738014564549,-500.0,0.00016575,2]
[350641283,1738014564569,-500.0,0.00016575,2]
[350641284,1738014564592,-500.0,0.00016575,2]
[350641285,1738014564612,-500.0,0.00016575,2]
[350641286,1738014564634,-500.0,0.00016575,2]
[350641287,1738014564656,-579.45,0.00016575,2]
[350641288,1738014564679,-500.0,0.00016575,2]
[350641289,1738014564701,-354.68579301,0.00016575,2]
[350641290,1738014564723,-500.0,0.00016575,2]
[350641291,1738014564745,-490.33661038,0.00016575,2]
[350641292,1738014564766,-500.0,0.00016575,2]
[350641293,1738014564789,-500.0,0.00016575,2]
[350641294,1738014564811,-500.0,0.00016575,2]
[350641295,1738014564832,-500.0,0.00016575,2]
[350641296,1738014564856,-500.0,0.00016575,2]
[350641297,1738014564876,-500.0,0.00016575,2]
[350641298,1738014564897,-500.86044861,0.00016575,2]
[350641299,1738014564918,-500.0,0.00016575,2]
[350641300,1738014565038,-500.0,0.00016575,2]
[350641301,1738014565064,-500.0,0.00016575,2]
[350641302,1738014565086,-500.0,0.00016575,2]
[350641303,1738014565107,-500.0,0.00016575,2]
[350641304,1738014565135,-500.0,0.00016575,2]
[350641305,1738014565158,-500.0,0.00016575,2]
[350641306,1738014565179,-501.03650285,0.00016575,2]
[350641307,1738014565200,-500.97114646,0.00016575,2]
[350641308,1738014565223,-500.0,0.00016575,2]
[350641309,1738014565244,-500.0,0.00016575,2]
[350641310,1738014565266,-500.0,0.00016575,2]
[350641311,1738014565287,-500.0,0.00016575,2]
[350641312,1738014565308,-460.91235787,0.00016575,2]
[350641313,1738014565331,-500.0,0.00016575,2]
[350641314,1738014565352,-500.84418733,0.00016575,2]
[350641315,1738014565374,-500.0,0.00016575,2]
[350641316,1738014565399,-500.76044502,0.00016575,2]
[350641317,1738014565420,-500.0,0.00016575,2]
[350641318,1738014565442,-500.0,0.00016575,2]
[350641319,1738014565464,-500.0,0.00016575,2]
[350641320,1738014565488,-500.0,0.00016575,2]
[350641321,1738014565512,-500.0,0.00016575,2]
[350641322,1738014565534,-497.86491795,0.00016575,2]
[350641323,1738014565556,-500.0,0.00016575,2]
[350641324,1738014565577,-500.0,0.00016575,2]
[350641325,1738014565599,-500.0,0.00016575,2]
[350641326,1738014565621,-500.0,0.00016575,2]
[350641327,1738014565645,-500.0,0.00016575,2]
[350641328,1738014565668,-635.79,0.00016575,2]
[350641329,1738014565690,-619.01,0.00016575,2]
[350641330,1738014565714,-500.0,0.00016575,2]
[350641331,1738014565736,-500.0,0.00016575,2]
[350641332,1738014565759,-500.0,0.00016575,2]
[350641333,1738014565781,-500.0,0.00016575,2]
[350641334,1738014565802,-500.0,0.00016575,2]
[350641335,1738014565825,-500.0,0.00016575,2]
[350641336,1738014565847,-500.0,0.00016575,2]
[350641337,1738014565870,-500.0,0.00016575,2]
[350641338,1738014565891,-510.02052768,0.00016575,2]
[350641339,1738014565913,-500.0,0.00016575,2]
[350641340,1738014565934,-500.0,0.00016575,2]
[350641341,1738014565958,-500.0,0.00016575,2]
[350641342,1738014565980,-367.79,0.00016575,2]
[350641343,1738014566003,-500.0,0.00016575,2]
[350641344,1738014566025,-500.0,0.00016575,2]
[350641345,1738014566047,-500.0,0.00016575,2]
[350641346,1738014566069,-516.01,0.00016575,2]
[350641347,1738014566091,-500.0,0.00016575,2]
[350641348,1738014566112,-500.0,0.00016575,2]
[350641349,1738014566134,-500.0,0.00016575,2]
[350641350,1738014566156,-500.0,0.00016575,2]
[350641351,1738014566179,-500.0,0.00016575,2]
[350641352,1738014566203,-500.0,0.00016575,2]
[350641353,1738014566223,-500.0,0.00016575,2]
[350641354,1738014566245,-232.42790728,0.00016575,2]
[350641355,1738014566267,-517.13,0.00016575,2]
[350641356,1738014566288,-500.0,0.00016575,2]
[350641357,1738014566312,-500.0,0.00016575,2]
[350641358,1738014566335,-500.0,0.00016575,2]
[350641359,1738014566359,-500.0,0.00016575,2]
[350641360,1738014566379,-500.0,0.00016575,2]
[350641361,1738014566405,-500.0,0.00016575,2]
[350641362,1738014566427,-622.15,0.00016575,2]
[350641363,1738014566453,-500.0,0.00016711,2]
[350641364,1738014566476,-500.0,0.00016711,2]
[350641365,1738014566504,-580.54600545,0.00016712,2]
[350641366,1738014566525,-509.97210173,0.00016712,2]
[350641367,1738014566546,-500.0,0.00016712,2]
[350641368,1738014566568,-500.0,0.00016712,2]
[350641369,1738014566590,-500.0,0.00016712,2]
[350641370,1738014566613,-500.0,0.00016712,2]
[350641371,1738014566636,-500.0,0.00016712,2]
[350641372,1738014566661,-500.0,0.00016712,2]
[350641373,1738014566684,-500.0,0.00016712,2]
[350641374,1738014566706,-500.0,0.00016712,2]
[350641375,1738014566728,-500.0,0.00016712,2]
[350641376,1738014566749,-500.0,0.00016712,2]
[350641377,1738014566771,-530.1,0.00016712,2]
[350641378,1738014566792,-173.38060431,0.00016712,2]
[350641379,1738014566813,-500.0,0.00016712,2]
[350641380,1738014566834,-500.0,0.00016712,2]
[350641381,1738014566855,-500.0,0.00016712,2]
[350641382,1738014566876,-521.72516624,0.00016712,2]
[350641383,1738014566897,-500.0,0.00016712,2]
[350641384,1738014566919,-500.0,0.00016712,2]
[350641385,1738014566941,-500.0,0.00016712,2]
[350641386,1738014566963,-500.0,0.00016712,2]
[350641387,1738014566984,-506.51546278,0.00016712,2]
[350641388,1738014567006,-500.0,0.00016712,2]
[350641389,1738014567028,-500.0,0.00016712,2]
[350641390,1738014567049,-515.98438416,0.00016712,2]
[350641391,1738014567070,-502.46643128,0.00016712,2]
[350641392,1738014567092,-500.0,0.00016712,2]
[350641393,1738014567113,-500.0,0.00016712,2]
[350641394,1738014567135,-500.0,0.00016712,2]
[350641395,1738014567158,-500.0,0.00016712,2]
[350641396,1738014567182,-500.0,0.00016712,2]
[350641397,1738014567204,-500.0,0.00016712,2]
[350641398,1738014567225,-500.0,0.00016712,2]
[350641399,1738014567247,-500.0,0.00016712,2]
[350641400,1738014567268,-500.0,0.00016712,2]
[350641401,1738014567290,-500.0,0.00016712,2]
[350641402,1738014567311,-500.0,0.00016712,2]
[350641403,1738014567333,-500.0,0.00016712,2]
[350641404,1738014567354,-502.37686188,0.00016712,2]
[350641405,1738014567375,-507.43455405,0.00016712,2]
[350641406,1738014567403,-500.0,0.00016712,2]
[350641407,1738014567424,-573.57131605,0.00016712,2]
[350641408,1738014567446,-581.79,0.00016712,2]
[350641409,1738014567469,-500.0,0.00016712,2]
[350641410,1738014567491,-151.73992059,0.00016712,2]
[350641411,1738014567513,-500.0,0.00016712,2]
[350641412,1738014567539,-687.97,0.00016712,2]
[350641413,1738014567562,-201.4502248,0.00016712,2]
[350641414,1738014567708,-500.0,0.00016712,2]
[350641415,1738014567734,-500.0,0.00016712,2]
[350641416,1738014567760,-198.4786368,0.00016712,2]
[350641417,1738014567782,-500.0,0.00016712,2]
[350641418,1738014567804,-500.0,0.00016712,2]
[350641419,1738014567826,-525.29545789,0.00016712,2]
[350641420,1738014567851,-500.0,0.00016712,2]
[350641421,1738014567873,-500.0,0.00016712,2]
[350641422,1738014567895,-501.10558753,0.00016712,2]
[350641423,1738014567920,-500.0,0.00016712,2]
[350641424,1738014567942,-366.68692746,0.00016712,2]
[350641425,1738014567966,-642.85,0.00016712,2]
[350641426,1738014567991,-500.0,0.00016712,2]
[350641427,1738014568013,-500.0,0.00016712,2]
[350641428,1738014568037,-500.0,0.00016712,2]
[350641429,1738014568060,-500.0,0.00016712,2]
[350641430,1738014568082,-500.0,0.00016712,2]
[350641431,1738014568104,-500.0,0.00016712,2]
[350641432,1738014568126,-500.0,0.00016712,2]
[350641433,1738014568149,-500.0,0.00016712,2]
[350641434,1738014568172,-500.0,0.00016712,2]
[350641435,1738014568195,-500.0,0.00016712,2]
[350641436,1738014568216,-458.25,0.00016712,2]
[350641437,1738014568239,-500.0,0.00016712,2]
[350641438,1738014568262,-500.0,0.00016712,2]
[350641439,1738014568283,-500.0,0.00016712,2]
[350641440,1738014568305,-500.0,0.00016712,2]
[350641441,1738014568328,-500.0,0.00016712,2]
[350641442,1738014568350,-508.44641942,0.00016712,2]
[350641443,1738014568373,-500.0,0.00016712,2]
[350641444,1738014568398,-510.48061614,0.00016712,2]
[350641445,1738014568421,-500.0,0.00016712,2]
[350641446,1738014568446,-500.0,0.00016712,2]
[350641447,1738014568469,-500.0,0.00016712,2]
[350641448,1738014568491,-500.0,0.00016712,2]
[350641449,1738014568514,-500.0,0.00016712,2]
[350641450,1738014568536,-500.0,0.00016712,2]
[350641451,1738014568561,-500.0,0.00016712,2]
[350641452,1738014568583,-500.0,0.00016712,2]
[350641453,1738014568607,-500.0,0.00016848,2]
[350641454,1738014568628,-500.0,0.00016849,2]
[350641455,1738014568650,-500.0,0.00016849,2]
[350641456,1738014568672,-628.23,0.00016849,2]
[350641457,1738014568694,-500.0,0.00016849,2]
[350641458,1738014568716,-592.54,0.00016849,2]
[350641459,1738014568737,-500.0,0.00016849,2]
[350641460,1738014568759,-500.0,0.00016849,2]
[350641461,1738014568780,-521.35,0.00016849,2]
[350641462,1738014568802,-506.49245642,0.00016849,2]
[350641463,1738014568823,-506.88841486,0.00016849,2]
[350641464,1738014568845,-500.0,0.00016849,2]
[350641465,1738014568867,-511.77822675,0.00016849,2]
[350641466,1738014568891,-500.0,0.00016849,2]
[350641467,1738014568913,-500.0,0.00016849,2]
[350641468,1738014568938,-500.0,0.00016849,2]
[350641469,1738014568960,-500.0,0.00016849,2]
[350641470,1738014568983,-687.97,0.00016849,2]
[350641471,1738014569007,-500.0,0.00016849,2]
[350641472,1738014569032,-500.0,0.00016849,2]
[350641473,1738014569058,-500.0,0.00016849,2]
[350641474,1738014569082,-582.2,0.00016849,2]
[350641475,1738014569107,-500.0,0.00016849,2]
[350641476,1738014569132,-500.0,0.00016849,2]
[350641477,1738014569159,-452.35255239,0.00016849,2]
[350641478,1738014569184,-500.0,0.00016849,2]
[350641479,1738014569210,-500.0,0.00016849,2]
[350641480,1738014569234,-500.0,0.00016849,2]
[350641481,1738014569258,-500.0,0.00016849,2]
[350641482,1738014569280,-500.0,0.00016849,2]
[350641483,1738014569303,-500.0,0.00016849,2]
[350641484,1738014569326,-198.74247687,0.00016849,2]
[350641485,1738014569348,-500.0,0.00016849,2]
[350641486,1738014569373,-500.0,0.00016849,2]
[350641487,1738014569400,-500.0,0.00016849,2]
[350641488,1738014569423,-500.0,0.00016849,2]
[350641489,1738014569448,-500.0,0.00016849,2]
[350641490,1738014569472,-500.0,0.00016849,2]
[350641491,1738014569496,-500.0,0.00016849,2]
[350641492,1738014569517,-500.0,0.00016849,2]
[350641493,1738014569540,-500.0,0.00016985,2]
[350641494,1738014569563,-591.75,0.00016986,2]
[350641495,1738014569584,-500.0,0.00016986,2]
[350641496,1738014569608,-500.0,0.00016986,2]
[350641497,1738014569630,-178.0,0.00016986,2]
[350641498,1738014569655,-687.97,0.00016986,2]
[350641499,1738014569679,-470.64530024,0.00016986,2]
[350641500,1738014569703,-500.0,0.00016986,2]
[350641501,1738014569728,-500.0,0.00016986,2]
[350641502,1738014569751,-500.0,0.00016986,2]
[350641503,1738014569775,-159.48067593,0.00016986,2]
[350641504,1738014569798,-500.0,0.00016986,2]
[350641505,1738014569820,-500.0,0.00016986,2]
[350641506,1738014569843,-315.86529234,0.00016986,2]
[350641982,1738014637507,-496.825,0.00016438,2]
[350641984,1738014637519,-3.175,0.00016438,2]
[350641986,1738014637529,-544.64,0.00016438,2]
[350641987,1738014637538,-500.0,0.00016438,2]
[350641988,1738014637548,-500.0,0.00016438,2]
[350641989,1738014637557,-197.09,0.00016575,2]
[350641990,1738014637566,-544.64,0.00016575,2]
[350641991,1738014637575,-500.0,0.00016575,2]
[350641992,1738014637585,-544.64,0.00016712,2]
[350641993,1738014637594,-158.65,0.00016712,2]
[350641994,1738014637604,-544.64,0.00016849,2]
[350641995,1738014637613,-300.0,0.00016985,2]
[350641996,1738014637623,-184.13470766,0.00016986,2]
[350641997,1738014637632,-500.0,0.00016986,2]
[350641998,1738014637642,-500.0,0.00016986,2]
[350641999,1738014637652,-500.0,0.00016986,2]
[350642000,1738014637662,-500.0,0.00016986,2]
[350642001,1738014637671,-253.42646126,0.00016986,2]
[350642002,1738014637680,-177.11790113,0.00016986,2]
[350642003,1738014637690,-526.82978627,0.00016986,2]
[350642004,1738014637702,-544.64,0.00016986,2]
[350642005,1738014637712,-500.0,0.00017123,2]
[350642006,1738014637721,-250.36,0.00017123,2]
[350642007,1738014637731,-500.0,0.00017123,2]
[350642008,1738014637740,-500.0,0.00017123,2]
[350642009,1738014637750,-500.0,0.00017123,2]
[350642010,1738014637759,-500.0,0.00017123,2]
[350642011,1738014637769,-575.72,0.00017123,2]
[350642012,1738014637778,-544.64,0.00017123,2]
[350642013,1738014637788,-180.96,0.0001726,2]
[350642014,1738014637798,-558.44,0.0001726,2]
[350642015,1738014637807,-544.64,0.0001726,2]
[350642016,1738014637817,-635.46883668,0.00017272,2]
[350642017,1738014637827,-406.14362685,0.00017272,2]
[350642018,1738014637836,-500.0,0.00017272,2]
[350642019,1738014637846,-500.0,0.00017272,2]
[350642020,1738014637855,-500.0,0.00017272,2]
[350642021,1738014637864,-507.66367035,0.00017272,2]
[350642022,1738014637873,-500.0,0.00017272,2]
[350642023,1738014637882,-4314.04200996,0.00017333,2]
[350642024,1738014637894,-4164.40376655,0.00017333,2]
[350642036,1738014638501,-5300.0,0.00017333,2]
[350642037,1738014638512,-3642.94027108,0.00017333,2]
[350642038,1738014638525,-7478.61395241,0.00017333,2]
[350642039,1738014638534,-544.64,0.00017397,2]
[350642040,1738014638543,-544.64,0.00017534,2]
[350642041,1738014638553,-544.64,0.00017671,2]
[350642042,1738014638562,-544.64,0.00017808,2]
[350642043,1738014638572,-500.0,0.00017944,2]
[350642044,1738014638582,-544.64,0.00017945,2]
[350642045,1738014638591,-544.64,0.00018082,2]
[350642046,1738014638600,-544.64,0.00018219,2]
[350642047,1738014638610,-544.64,0.00018356,2]
[350642048,1738014638619,-544.64,0.00018493,2]
[350642049,1738014638628,-300.0,0.00018552,2]
[350642050,1738014638638,-157.45,0.000186,2]
[350642051,1738014638647,-544.64,0.0001863,2]
[350642052,1738014638656,-178.711,0.00018638,2]
[350642053,1738014638665,-544.64,0.00018767,2]
[350642054,1738014638674,-153.0,0.00018846,2]
[350642055,1738014638683,-153.0,0.00018846,2]
[350642056,1738014638695,-153.0,0.00018846,2]
[350642057,1738014638704,-153.0,0.00018846,2]
[350642058,1738014638713,-153.0,0.00018846,2]
[350642059,1738014638722,-153.0,0.00018846,2]
[350642060,1738014638731,-153.0,0.00018846,2]
[350642061,1738014638741,-153.0,0.00018846,2]
[350642062,1738014638750,-153.0,0.00018846,2]
[350642063,1738014638759,-153.0,0.00018846,2]
[350642064,1738014638769,-153.0,0.00018846,2]
[350642065,1738014638778,-153.0,0.00018846,2]
[350642066,1738014638787,-153.0,0.00018846,2]
[350642067,1738014638796,-153.0,0.0001885,2]
[350642068,1738014638805,-153.0,0.0001885,2]
[350642069,1738014638814,-153.0,0.0001885,2]
[350642070,1738014638823,-153.0,0.0001885,2]
[350642071,1738014638832,-153.0,0.0001885,2]
[350642072,1738014638841,-153.0,0.0001885,2]
[350642073,1738014638851,-153.0,0.0001885,2]
[350642074,1738014638860,-153.0,0.0001885,2]
[350642075,1738014638869,-153.0,0.00018851,2]
[350642076,1738014638878,-153.0,0.00018851,2]
[350642077,1738014638887,-153.0,0.00018851,2]
[350642078,1738014638896,-153.0,0.00018851,2]
[350642079,1738014638905,-153.0,0.00018851,2]
[350642080,1738014638914,-153.0,0.00018855,2]
[350642081,1738014638923,-153.0,0.00018855,2]
[350642082,1738014638932,-153.0,0.00018855,2]
[350642083,1738014638941,-153.0,0.00018855,2]
[350642084,1738014638951,-153.0,0.00018855,2]
[350642085,1738014638960,-153.0,0.00018855,2]
[350642086,1738014638969,-153.0,0.00018855,2]
[350642087,1738014638978,-153.0,0.00018855,2]
[350642088,1738014638987,-239.97029159,0.000189,2]
[350642089,1738014638995,-500.0,0.00018903,2]
[350642090,1738014639004,-544.64,0.00018904,2]
[350642091,1738014639014,-500.0,0.00018908,2]
[350642092,1738014639023,-544.64,0.00019041,2]
[350642093,1738014639032,-318.57083847,0.00019178,7]
[350642094,1738014639041,-544.64,0.00019178,2]
[350642095,1738014639050,-544.64,0.00019315,2]
[350642096,1738014639059,-544.64,0.00019452,2]
[350642097,1738014639068,-544.83503365,0.00019589,2]
[350642098,1738014639077,-239.97029158,0.000204,2]
[350642099,1738014639087,-499.0,0.00020547,2]
[350642100,1738014639096,-500.0,0.000211,2]
[350642101,1738014639105,-310.13,0.000215,2]
[350642102,1738014639115,-154.674,0.000216,2]
[350642103,1738014639124,-499.0,0.00021917,4]
[350642104,1738014639134,-151.0,0.00022,7]
[350642105,1738014639143,-300.0,0.00022,9]
[350642106,1738014639153,-13239.98568306,0.00022228,2]
[350642107,1738014639162,-500.0,0.00022299,2]
[350642108,1738014639172,-151.0,0.000224,8]
[350642109,1738014639181,-153.64,0.000225,31]
[350642110,1738014639191,-153.64,0.000225,31]
[350642111,1738014639203,-153.64,0.000225,31]
[350642112,1738014639212,-153.64,0.000225,31]
[350642113,1738014639221,-153.64,0.000225,31]
[350642114,1738014639231,-153.64,0.000225,31]
[350642115,1738014639240,-153.64,0.000225,31]
[350642116,1738014639250,-238.0115379,0.00022516,2]
[350642117,1738014639260,-176.54941156,0.0002264,2]
[350642118,1738014639269,-155.433122,0.00022646,14]
[350642119,1738014639279,-500.0,0.00022714,8]
[350642120,1738014639288,-500.0,0.00022714,8]
[350642121,1738014639298,-229.86032313,0.00022739,2]
[350642122,1738014639307,-273.55012598,0.00022739,2]
[350642123,1738014639317,-500.0,0.00022739,2]
[350642124,1738014639326,-500.0,0.00022739,2]
[350642125,1738014639337,-344.77491583,0.00022739,2]
[350642126,1738014639346,-176.78541515,0.00022739,2]
[350642127,1738014639356,-151.321651,0.0002274,7]
[350642128,1738014639365,-151.647036,0.0002274,7]
[350642129,1738014639374,-151.0,0.0002274,7]
[350642130,1738014639384,-179.613784,0.0002274,7]
[350642131,1738014639393,-28499.07493597,0.0002274,5]
[350642132,1738014639402,-151.0,0.0002274,7]
[350642133,1738014639411,-151.0,0.0002274,7]
[350642134,1738014639421,-270.863519,0.0002274,7]
[350642135,1738014639432,-151.0,0.0002274,7]
[350642136,1738014639442,-151.0,0.0002274,7]
[350642137,1738014639453,-273.336488,0.0002274,7]
[350642138,1738014639463,-151.0,0.0002274,7]
[350642139,1738014639473,-237.018823,0.0002274,7]
[350642140,1738014639482,-3567.83077482,0.0002274,5]
[350642141,1738014639495,-2987.20506077,0.0002274,5]
[350642142,1738014639504,-3037.31235615,0.0002274,61]
[350642143,1738014639515,-626.7829405,0.0002274,61]
[350642144,1738014639527,-20106.92624695,0.0002274,61]
[350642145,1738014639539,-12060.86560707,0.0002274,61]
[350642163,1738014643484,-11013.29059998,0.0002274,61]
[350642164,1738014643546,-6295.74867146,0.0002274,61]
[350642165,1738014643557,-1649.302789,0.0002274,61]
[350642166,1738014643568,-1929.35351999,0.0002274,61]
[350642167,1738014643579,-399.82719863,0.0002274,61]
[350642168,1738014643590,-6202.78546523,0.0002274,61]
[350642169,1738014643601,-4633.70808809,0.0002274,61]
[350642170,1738014643613,-4298.4,0.0002274,61]
[350642171,1738014643624,-40351.7559365,0.0002274,61]
[350642172,1738014643635,-641.07281938,0.0002274,61]
[350642173,1738014643650,-1000.22095921,0.0002274,61]
[350642174,1738014643661,-29478.12679402,0.0002274,61]
[350642175,1738014643673,-21650.33740966,0.0002274,61]
[350642176,1738014643684,-10105.0,0.0002274,61]
[350642177,1738014643697,-4419.49445865,0.0002274,61]
[350642178,1738014643708,-750.82011137,0.0002274,61]
[350642179,1738014643719,-29785.29609741,0.0002274,61]
[350642180,1738014643729,-377.26299996,0.0002274,61]
[350642181,1738014643741,-303.2774998,0.0002274,61]
[350642182,1738014643752,-733.66273387,0.0002274,61]
[350642183,1738014643763,-1142.0,0.0002274,61]
[350642204,1738014645992,-2660.29088213,0.0002274,61]
[350642206,1738014646003,-26497.0852723,0.0002274,61]
[350642224,1738014646647,-29086.22159747,0.0002274,61]
[350642225,1738014646687,-158.83156291,0.0002274,61]
[350642226,1738014646698,-10886.11007742,0.0002274,61]
[350642227,1738014646746,-10510.82736094,0.0002274,61]
[350642236,1738014700054,329.81816069,0.000171,14]
[350642243,1738015068558,10000.0,0.00018,30]
[350642244,1738015133787,510.98817234,0.0001564,2]
[350642245,1738015387311,200.000002,0.00013973,2]
[350642248,1738015498481,24900.0,0.00015455,2]
[350642249,1738015508800,4125.20174288,0.0001564,2]
[350642250,1738015517056,1910.42572681,0.0001564,2]
[350642251,1738015530130,-450.0,0.00015781,2]
[350642252,1738015531091,-13.8901294,0.00015781,2]
[350642253,1738015531113,-167.67808663,0.00016337,2]
[350642254,1738015531134,-60.54152453,0.00016428,2]
[350642256,1738015629101,-1124.1251653,0.00016101,2]
[350642257,1738015629122,-546.50070612,0.00016264,2]
[350642258,1738015641094,-577.62445918,0.00016264,2]
[350642259,1738015641116,-167.67808661,0.00016337,2]
[350642260,1738015641139,-177.58086249,0.00016338,2]
[350642261,1738015641161,-131.26552768,0.00016428,2]
[350642262,1738015641183,-500.0,0.00016437,2]
[350642263,1738015641205,-137.63716567,0.00016437,2]
[350642264,1738015649098,-540.3224408,0.00016101,2]
[350642265,1738015649134,-180.7853814,0.00016101,2]
[350642266,1738015649156,-362.36283433,0.00016437,2]
[350642267,1738015649177,-500.0,0.00016437,2]
[350642268,1738015649200,-500.0,0.00016437,2]
[350642269,1738015649220,-500.0,0.00016437,2]
[350642270,1738015649242,-500.0,0.00016437,2]
[350642271,1738015649277,-500.0,0.00016437,2]
[350642272,1738015649301,-500.0,0.00016437,2]
[350642273,1738015649326,-500.0,0.00016437,2]
[350642274,1738015649348,-500.0,0.00016437,2]
[350642275,1738015649369,-500.0,0.00016437,2]
[350642276,1738015649395,-500.0,0.00016437,2]
[350642277,1738015649416,-474.55646798,0.00016437,2]
[350642278,1738015649438,-500.0,0.00016437,2]
[350642279,1738015649464,-500.0,0.00016437,2]
[350642280,1738015649485,-500.0,0.00016437,2]
[350642281,1738015649511,-311.16449571,0.00016437,2]
[350642282,1738015653108,-751.75491642,0.0001594,2]
[350642285,1738015746259,-1940.99830496,0.0001594,2]
[350642286,1738015746281,-300.0,0.00016436,2]
[350642287,1738015746310,-188.83550429,0.00016437,2]
[350642288,1738015746334,-500.0,0.00016437,2]
[350642289,1738015746355,-500.0,0.00016437,2]
[350642290,1738015746383,-500.0,0.00016437,2]
[350642291,1738015746406,-500.0,0.00016437,2]
[350642292,1738015746427,-500.0,0.00016437,2]
[350642293,1738015746452,-500.0,0.00016437,2]
[350642294,1738015746473,-500.0,0.00016437,2]
[350642295,1738015746497,-500.0,0.00016437,2]
[350642296,1738015746518,-500.0,0.00016437,2]
[350642297,1738015746542,-500.0,0.00016437,2]
[350642298,1738015746564,-500.0,0.00016437,2]
[350642299,1738015746589,-500.0,0.00016437,2]
[350642300,1738015746612,-500.0,0.00016437,2]
[350642301,1738015746640,-500.0,0.00016437,2]
[350642302,1738015746663,-500.0,0.00016437,2]
[350642303,1738015746688,-500.0,0.00016437,2]
[350642304,1738015746710,-500.0,0.00016437,2]
[350642305,1738015746734,-500.0,0.00016437,2]
[350642306,1738015746759,-486.432732,0.00016437,2]
[350642307,1738015746783,-500.0,0.00016437,2]
[350642308,1738015746808,-500.0,0.00016437,2]